Cogmind - Beta 14 @@@ ROGUE MODE // 2024.08.16 @ 21:24:46 Player: Olafz Result: Destroyed by G-47 Trooper with Particle Gun Performance ------------- Evolutions (2) 1000 Regions Visited (3) 600 Robots Destroyed (0) 0 Value Destroyed (0) 0 Prototype IDs (0) 0 Alien Tech Used (0) 0 Bonus (470) 470 TOTAL SCORE: 2070 Bonus ------- Pacifist 470 Cogmind --------- Core Integrity 0/550 Matter 292/300 Energy 99/100 System Corruption 0% Temperature Cool (18) Movement Core (50) Location -8/Materials Parts ------- > --- POWER (1) -------- (None) > --- PROPULSION (3) --- (None) > --- UTILITY (5) ------ Signal Interpreter Improved Signal Interpreter Improved Signal Interpreter > --- WEAPON (2) ------- (None) > --- INVENTORY (5) ---- Signal Interpreter Improved Signal Interpreter Improved Signal Interpreter Improved Signal Interpreter ECM Suite Peak State ------------ > --- POWER ------------ (None) > --- PROPULSION ------- VTOL Module > --- UTILITY ---------- Signal Interpreter Improved Signal Interpreter Improved Signal Interpreter > --- WEAPON ----------- (None) > --- INVENTORY -------- Signal Interpreter Improved Signal Interpreter Improved Signal Interpreter Improved Signal Interpreter ECM Suite [Rating: 10] Favorites ----------- Power None Propulsion VTOL Module Flight Unit VTOL Module Utility Improved Signal Interpreter Processor Improved Signal Interpreter Weapon None Build | -11 -10 -9 -8 ------- Run | Yrd Mat Mat Mat Slots Evolved 4 | . . 2 2 Power . | . . . . Propulsion 1 | . . . 1 Utility 3 | . . 2 1 Weapon . | . . . . Parts Attached 4 | . . 1 3 Power . | . . . . Engine . | . . . . Core . | . . . . Reactor . | . . . . Propulsion 1 | . . . 1 Treads . | . . . . Leg . | . . . . Wheel . | . . . . Hover . | . . . . Flight 1 | . . . 1 Utility 3 | . . 1 2 Device . | . . . . Storage . | . . . . Processor 3 | . . 1 2 Hackware . | . . . . Protection . | . . . . Artifact . | . . . . Weapon . | . . . . Energy Gun . | . . . . Energy Cannon . | . . . . Ballistic Gun . | . . . . Ballistic Cannon . | . . . . Launcher . | . . . . Special Weapon . | . . . . Impact Weapon . | . . . . Slashing Weapon . | . . . . Piercing Weapon . | . . . . Special Melee Weapon . | . . . . Unidentified Prototypes . | . . . . Parts Lost 1 | . . . 1 Power . | . . . . Propulsion 1 | . . . 1 Utility . | . . . . Weapon . | . . . . Highest Loss Streak 1 | . . . 1 To Critical Strikes . | . . . . Average Slot Usage (%) 19 | . . 11 29 Flight 2 | . . . 3 Processor 17 | . . 11 25 Peak Build Rating 10 | . . 1 10 Average Rating 4 | . . . 8 On Entrance . | . . . 1 Naked Turns 45 | . 40 5 . Heaviest Build . | . . . . Greatest Support 4 | 3 3 3 4 Greatest Overweight (x) . | . . . . Average Overweight (x) . | . . . . Largest Inventory Capacity 5 | 5 5 5 5 Average Capacity 5 | 5 5 5 5 Most Carried 5 | . 1 4 5 Average Carried 3 | . . 3 4 Final Capacity 5 | 5 5 5 5 Final Carried 5 | . 1 4 5 Class Distribution -------------------- 100% | Mutant Dominant Class ---------------- Mutant | -10/Materials Mutant | -9/Materials Mutant | -8/Materials Resources | -11 -10 -9 -8 ----------- Run | Yrd Mat Mat Mat Matter Collected 218 | 75 . 135 8 Remotely . | . . . . Salvage Created . | . . . . Parts . | . . . . Haulers Intercepted . | . . . . Recyclers Shooed . | . . . . Parts Field Recycled . | . . . . Retrieved Matter . | . . . . Parts Self-Destructed . | . . . . Prevented . | . . . . Kills | -11 -10 -9 -8 ------- Run | Yrd Mat Mat Mat Combat Hostiles Destroyed . | . . . . Classes Destroyed . | . . . . Best Kill Streak . | . . . . Combat Bots Only . | . . . . Max Kills in Single Turn . | . . . . Gunslinging . | . . . . Exploded . | . . . . Melee . | . . . . Uniques/NPCs Destroyed . | . . . . Combat | -11 -10 -9 -8 -------- Run | Yrd Mat Mat Mat Hostile Shots Fired 53 | . 6 10 37 Missed 20 | . 2 5 13 Damage Taken 692 | . 34 77 581 Core 662 | . 34 77 551 Absorbed by Shields . | . . . . Core Remaining (%) 88 | 100 86 80 . Volleys Fired . | . . . . Largest . | . . . . Hottest . | . . . . Shots Fired . | . . . . Gun . | . . . . Cannon . | . . . . Launcher . | . . . . Special . | . . . . Kinetic . | . . . . Thermal . | . . . . Explosive . | . . . . Electromagnetic . | . . . . Robot Hit Streak . | . . . . Robot Miss Streak . | . . . . Penetration Max . | . . . . Secondary Targets . | . . . . Shots Hit Robots . | . . . . Core Hits . | . . . . Critical Kills . | . . . . Critical Parts Destroyed . | . . . . Critical Strikes . | . . . . Melee Attacks . | . . . . Impact . | . . . . Slashing . | . . . . Piercing . | . . . . Sneak Attacks . | . . . . Combat Hostiles . | . . . . Follow-up Attacks . | . . . . Damage Inflicted 8 | . . . 8 Guns . | . . . . Cannons . | . . . . Explosions . | . . . . Melee . | . . . . Ramming 8 | . . . 8 Kinetic . | . . . . Thermal . | . . . . Explosive . | . . . . Electromagnetic . | . . . . Impact . | . . . . Slashing . | . . . . Piercing . | . . . . Highest Corruption . | . . . . Average Corruption . | . . . . Corruption Purged . | . . . . Corruption Blocked . | . . . . Overload Shots . | . . . . Overflow Damage . | . . . . Projectiles . | . . . . Explosions . | . . . . Melee . | . . . . Knockbacks . | . . . . Impact . | . . . . Kinetic . | . . . . Secondary . | . . . . Self-Inflicted Damage 3 | . . . 3 Shots . | . . . . Rammed 2 | . . . 2 Targets Rammed 2 | . . . 2 Kicked . | . . . . Crushed . | . . . . Highest Temperature 5 | . . . 5 Average Temperature 5 | . . . 5 Received Heat Transfer 216 | . . 36 180 Siege Activations . | . . . . Robots Corrupted . | . . . . Combat Hostiles . | . . . . Parts Fried . | . . . . Impact Corruptions . | . . . . Robots Melted . | . . . . Combat Hostiles . | . . . . Parts Melted . | . . . . Heat Transferred . | . . . . Parts Sabotaged . | . . . . Parts Stolen . | . . . . Parts Stripped . | . . . . Power Chain Reactions . | . . . . Alert | -11 -10 -9 -8 ------- Run | Yrd Mat Mat Mat Peak Influence 90 | . 29 40 90 Initial 16 | . . 11 16 Average 29 | . 12 24 39 Maximum Alert Level . | . . . . Low Security (%) 100 | 100 100 100 100 Level 1 . | . . . . Level 2 . | . . . . Level 3 . | . . . . Level 4 . | . . . . Level 5 . | . . . . High Security . | . . . . Max Security . | . . . . Squads Dispatched 3 | . . 1 2 Investigation 1 | . . . 1 Extermination . | . . . . Reinforcement 2 | . . 1 1 Assault . | . . . . Garrison . | . . . . Intercept . | . . . . Searches Triggered . | . . . . Construction Impeded . | . . . . Haulers Reinforced . | . . . . Active Scanning Responses . | . . . . Cargo Convoy Interrupts . | . . . . Stealth | -11 -10 -9 -8 --------- Run | Yrd Mat Mat Mat Distress Signals 2 | . . . 2 Communications Jammed . | . . . . Distress Signals . | . . . . Times Spotted 21 | . 4 2 15 Peak Tracking Total 12 | . 4 1 12 Tactical Retreats 2 | . . . 2 Traps | -11 -10 -9 -8 ------- Run | Yrd Mat Mat Mat Traps Triggered . | . . . . Indirectly . | . . . . Trap Hack Attempts . | . . . . Triggered . | . . . . Disarmed . | . . . . Reprogrammed . | . . . . Reused . | . . . . Traps Extracted . | . . . . Installed . | . . . . Triggered . | . . . . Machines | -11 -10 -9 -8 ---------- Run | Yrd Mat Mat Mat Machines Disabled . | . . . . Max in Single Turn . | . . . . Machines Repaired . | . . . . Machines Dismantled . | . . . . Machines Sabotaged . | . . . . Overloaded Fab Kills . | . . . . Hacking | -11 -10 -9 -8 --------- Run | Yrd Mat Mat Mat Machines Accessed 4 | . 2 1 1 Terminals 4 | . 2 1 1 Fabricators . | . . . . Repair Stations . | . . . . Recycling Units . | . . . . Scanalyzers . | . . . . Garrison Access . | . . . . Total Hacks 13 | . 7 3 3 Successful 6 | . 2 2 2 Failed 7 | . 5 1 1 Catastrophic 1 | . . 1 . Database Lockouts . | . . . . Manual 13 | . 7 3 3 Terminals 13 | . 7 3 3 Fabricators . | . . . . Repair Stations . | . . . . Recycling Units . | . . . . Scanalyzers . | . . . . Garrison Access . | . . . . Terminal Hacks 3 | . 1 1 1 Level Access Points 3 | . 1 1 1 Fabricator Hacks . | . . . . Repair Station Hacks . | . . . . Recycling Unit Hacks . | . . . . Scanalyzer . | . . . . Garrison Access Hacks . | . . . . Unauthorized Hacks 3 | . 1 1 1 Terminals 3 | . 1 1 1 Botnet 3 | . 1 1 1 Fabricators . | . . . . Repair Stations . | . . . . Recycling Units . | . . . . Scanalyzers . | . . . . Garrison Access . | . . . . Data Cores Recovered . | . . . . Used . | . . . . Hacking Detections 3 | . 2 . 1 Full Trace Events 1 | . . . 1 Feedback Events . | . . . . Feedback Blocked . | . . . . Robot Schematics Acquired . | . . . . Robots Built . | . . . . Authchips . | . . . . Time . | . . . . Total Robot Build Rating . | . . . . Part Schematics Acquired . | . . . . Parts Built . | . . . . Authchips . | . . . . Time . | . . . . Total Part Build Rating . | . . . . Parts Repaired . | . . . . Time . | . . . . Parts Recycled . | . . . . Recycled Matter . | . . . . Retrieved Matter . | . . . . Retrieved Components . | . . . . Parts Scanalyzed . | . . . . Part Schematics Acquired . | . . . . Parts Damaged . | . . . . Bothacking | -11 -10 -9 -8 ------------ Run | Yrd Mat Mat Mat Used RIF Installer . | . . . . Robots Hacked . | . . . . Non-combat . | . . . . Combat . | . . . . Robot Hacks Applied . | . . . . Relay Couplers Released . | . . . . Fabnet Peak Effective % . | . . . . Robots Rewired . | . . . . Allies Hacked . | . . . . Hacks Repelled . | . . . . Allies | -11 -10 -9 -8 -------- Run | Yrd Mat Mat Mat Total Allies . | . . . . Largest Group . | . . . . Highest-Rated Group . | . . . . Highest-Rated Ally . | . . . . Total Orders . | . . . . Ally Attacks . | . . . . Total Damage . | . . . . Kills . | . . . . Allies Corrupted . | . . . . Allies Melted . | . . . . Intel | -11 -10 -9 -8 ------- Run | Yrd Mat Mat Mat Robot Analysis Total . | . . . . Derelict Logs Recovered . | . . . . Drone Launches . | . . . . Drone Recoveries . | . . . . Exploration | -11 -10 -9 -8 ------------- Run | Yrd Mat Mat Mat Turns Passed 212 | 9 40 47 116 Spaces Moved 437 | 18 77 85 257 Core 301 | 18 77 85 121 Treads . | . . . . Legs . | . . . . Wheels . | . . . . Hover . | . . . . Flight 136 | . . . 136 Fastest Speed 35 | 50 50 50 35 Average Speed 45 | 50 50 50 42 Slowest Speed 50 | 50 50 50 50 Overloaded Moves . | . . . . Propulsion Burnouts . | . . . . Robots Hopped 2 | . . . 2 Cave-ins Triggered . | . . . . Exploration Rate (%) 18 | 3 19 16 36 Regions Visited 3 Branch Regions . Pre-discovered Areas . | . . . . Known Exits Taken 2 | . 1 1 . Unknown Exits Taken 1 | 1 . . . Scrap Searched . | . . . . Spaces Dug . | . . . . Terrain Destroyed . | . . . . Melee . | . . . . Projectile . | . . . . AOE . | . . . . Terrain Rammed . | . . . . Walls Destroyed . | . . . . Machines Disabled . | . . . . Actions | -11 -10 -9 -8 --------- Run | Yrd Mat Mat Mat Total 447 | 17 77 88 265 Wait . | . . . . Move 430 | 17 76 84 253 Hop 2 | . . . 2 Pick Up 7 | . 1 3 3 Fast Attach 4 | . . 1 3 Attach . | . . . . Detach . | . . . . Swap . | . . . . Drop 2 | . . . 2 Fire . | . . . . Melee . | . . . . Ram 2 | . . . 2 Kick . | . . . . Crush . | . . . . Escape Stasis . | . . . . Rewire . | . . . . Trap . | . . . . Miscellaneous . | . . . . Route ------- -11/Scrapyard -10/Materials (discovered 3 exits: *Mat x3) -9/Materials (discovered 3 exits: *Mat x3) -8/Materials (discovered 3 exits: Fac x3) History --------- Turn | Location | Event 2 | -11/Scrapyard | Met Revision 17 3 | -11/Scrapyard | Discovered new exit (range 15) 10 | -11/Scrapyard | Entered Materials 25 | -10/Materials | Identified exit to Materials 50 | -10/Materials | Entered another Materials area 50 | -9/Materials | Evolved 2 slots: Utility x2 68 | -9/Materials | Identified exit to Materials 97 | -9/Materials | Entered another Materials area 97 | -8/Materials | Evolved 2 slots: Propulsion x1, Utility x1 142 | -8/Materials | Core integrity fell below 50% 166 | -8/Materials | Identified exit to Factory 186 | -8/Materials | Core integrity fell below 20% 213 | -8/Materials | Destroyed by G-47 Trooper with Particle Gun Last Messages --------------- Connecting with Terminal... >>Trojan(Botnet) Trojan loaded successfully. Testing... Terminal linked with 0 systems. Awaiting botnet instructions. >>Access(Main) Found 3 level access points to Factory: (86,49) (45,85) (53,11) Map updated. ALERT: Suspicious activity at Terminal M009. Dispatching Investigation squad. K-01 Serf collects debris. U-05 Engineer works on Integration Channel. K-01 Serf collects debris. U-05 Engineer works on Integration Channel. K-01 Serf collects debris. W-25 Informer sends out distress signal. Map ----- +----------------------------------------------------+ | # #?????????????????????????? | | + #?????????????????????????? | | #### # #?????????????????????????? | | ####+########?????????????????????????? | | " # #???????????????????????????? | | " #! #???????????????????????????? | | " = # #???????????????????????????? | | # #???????????????????????????? | | # #???????????????????????????? | | " # #???????????????????????????? | | "" # [ #???????????????????????????? | | "" # #???????????????????????????? | | " [ #####+#####???????????????????????????? | | #????????????????????????????? | | #????????????????????????????? | | ##???????????????????????????? | | "## ########### ## ??????????????????????????? | | ### #########?# ## """"??????????????????????? | | ## # ??# ## """"""" ??????????????????? | | ## # """ ?# ## """"""" ??????????????????? | | ## # """ ## ## """"""????????????????????? | | ## # """ ## #? """""?????????????????????? | | ## # """ ## ##? ??????????????????????? | | ## + ! # ###g######## #?????????????? | | ## # # g w h #?????????????? | | ## # # @ u ????????? | | ## ########## ????????? | | ## #???????# #### #### ????????? | | #???????###+###??# #??????#####?????????? | | #????????????????# #????????????????????? | | #????????????????# #????????????????????? | | ## #????????????????# #????????????????????? | | ###### #????????????????+ #????????????????????? | | !# #????????????????# #????????????????????? | | """ # #?????????????????####????????????????????? | | """ # #?????????????????????????????????????????? | | """ !# #?????????????????????????????????????????? | | """ # #?????????????????????????????????????????? | | # ??????????????????????????????????????????? | | ###### ??????????????????????????????????????????? | | ?????????????????????????????????????????????????? | | ######???????????????????????????????????????????? | | #???????????????????????????????????????????? | | """ #???????????????????????????????????????????? | | """ #???????????????????????????????????????????? | | """ #???????????????????????????????????????????? | | #???????????????????????????????????????????? | | #???????????????????????????????????????????? | | [[[ #???????????????????????????????????????????? | | [[[ #???????????????????????????????????????????? | +----------------------------------------------------+ Best States ------------- Heat Dissipation 31 Energy Generation 5 Energy Capacity 100 Matter Stores 300 Matter Capacity 300 Sight Range 16 Terrain Scan Density 10 Evasion (%) 63 Item Schematics ----------------- None Robot Schematics ------------------ None Fabricated ------------ Nothing Alien Tech Used ----------------- None Achievements -------------- None Challenges ------------ None Game ------ Seed MakeshiftNavigationCarapace Manual? 0 Play Time 00:06:35 Cumulative 207.6 hours Start 2024.08.16 @ 21:20:16 End 2024.08.16 @ 21:24:46 Sessions 1 Manual Loads 0 Difficulty Rogue Special Mode None Game No. 382 Rogue 380 Adventurer 2 Explorer 0 Win Type - Total 9 Types 8/0/0/1/0/0/0/0/0 Lore% 72 Gallery% 65 Achievement% 56 Wizard Run 0 Options --------- Layout 0 ASCII 0 Keyboard 1 Movement Numpad Keybinds 1 Fullscreen 2 Font 18/SmallcapsGlow Map View 76x50 Zoom Use 0% Tactical HUD 1 Map Filters NONE Filters NONE Steam 1 RUN: b5ee41b3-3553-4006-8af8-0008e531032f